[Event "4. Memorial Svat.Hastika OPEN"]
[Site "Jesenik, Czech Republic"]
[Date "2022.09.03"]
[Round "1.1"]
[White "Cechacek, Miroslav"]
[Black "Banasik, Krzysztof"]
[Result "0-1"]
[TimeControl "720+3"]
[WhiteFideId "377090"]
[BlackFideId "1125222"]
[WhiteElo "1541"]
[BlackElo "2166"]

1. e4 {[%clk 00:12:04]} {[%emt 00:00:02]} d6 {[%clk 00:12:05]} {[%emt
00:00:02]} 2. f4 {[%clk 00:12:04]} {[%emt 00:00:03]} c5 {[%clk 00:12:06]}
{[%emt 00:00:01]} 3. Nf3 {[%clk 00:12:05]} {[%emt 00:00:03]} Nc6 {[%clk
00:12:07]} {[%emt 00:00:02]} 4. Bb5 {[%clk 00:12:05]} {[%emt 00:00:04]} g6
{[%clk 00:12:01]} {[%emt 00:00:08]} 5. d4 {[%clk 00:12:05]} {[%emt 00:00:03]}
cxd4 {[%clk 00:11:57]} {[%emt 00:00:07]} 6. Nxd4 {[%clk 00:11:53]} {[%emt
00:00:14]} Bd7 {[%clk 00:11:57]} {[%emt 00:00:04]} 7. Nxc6 {[%clk 00:11:51]}
{[%emt 00:00:05]} bxc6 {[%clk 00:11:57]} {[%emt 00:00:03]} 8. Qd4 {[%clk
00:11:43]} {[%emt 00:00:11]} Nf6 {[%clk 00:10:56]} {[%emt 00:01:04]} 9. Bc4
{[%clk 00:11:18]} {[%emt 00:00:28]} Bg7 {[%clk 00:10:50]} {[%emt 00:00:10]} 10.
e5 {[%clk 00:11:20]} dxe5 {[%clk 00:09:41]} {[%emt 00:01:11]} 11. fxe5 {[%clk
00:11:21]} {[%emt 00:00:02]} Ng4 {[%clk 00:09:28]} {[%emt 00:00:15]} 12. O-O
{[%clk 00:11:22]} {[%emt 00:00:03]} O-O {[%clk 00:08:48]} {[%emt 00:00:43]} 13.
Bf4 {[%clk 00:11:23]} {[%emt 00:00:02]} Bf5 {[%clk 00:07:52]} {[%emt 00:01:00]}
14. h3 {[%clk 00:11:15]} {[%emt 00:00:10]} Qxd4+ {[%clk 00:07:52]} {[%emt
00:00:03]} 0-1

[Event "4. Memorial Svat.Hastika OPEN"]
[Site "Jesenik, Czech Republic"]
[Date "2022.09.03"]
[Round "1.2"]
[White "Gnida, Patrik"]
[Black "Zrubek, Dan"]
[Result "1-0"]
[TimeControl "720+3"]
[WhiteFideId "351660"]
[BlackFideId "23718714"]
[WhiteElo "2092"]
[BlackElo "1504"]

1. e4 {[%clk 00:12:04]} {[%emt 00:00:02]} c5 {[%clk 00:12:05]} {[%emt
00:00:02]} 2. Nf3 {[%clk 00:12:05]} {[%emt 00:00:02]} d6 {[%clk 00:12:07]} 3.
g3 {[%clk 00:12:04]} {[%emt 00:00:04]} Nc6 {[%clk 00:12:07]} {[%emt 00:00:04]}
4. Bg2 {[%clk 00:12:01]} {[%emt 00:00:06]} Nf6 {[%clk 00:12:04]} {[%emt
00:00:05]} 5. d3 {[%clk 00:11:58]} {[%emt 00:00:06]} g6 {[%clk 00:12:04]}
{[%emt 00:00:04]} 6. O-O {[%clk 00:11:59]} {[%emt 00:00:02]} Bg7 {[%clk
00:12:05]} {[%emt 00:00:02]} 7. Re1 {[%clk 00:12:00]} {[%emt 00:00:03]} Bg4
{[%clk 00:11:20]} {[%emt 00:00:47]} 8. h3 {[%clk 00:12:00]} {[%emt 00:00:03]}
Bxf3 {[%clk 00:11:17]} {[%emt 00:00:06]} 9. Qxf3 {[%clk 00:12:01]} {[%emt
00:00:02]} Rb8 {[%clk 00:10:54]} {[%emt 00:00:27]} 10. a4 {[%clk 00:11:47]}
{[%emt 00:00:16]} O-O {[%clk 00:10:39]} {[%emt 00:00:17]} 11. c3 {[%clk
00:11:46]} {[%emt 00:00:04]} Qc7 {[%clk 00:09:41]} {[%emt 00:01:02]} 12. Na3
{[%clk 00:11:38]} {[%emt 00:00:11]} a6 {[%clk 00:09:23]} {[%emt 00:00:21]} 13.
Be3 {[%clk 00:11:13]} {[%emt 00:00:27]} Nd7 {[%clk 00:08:26]} {[%emt 00:01:01]}
14. Rac1 {[%clk 00:10:43]} {[%emt 00:00:34]} b5 {[%clk 00:07:09]} {[%emt
00:01:19]} 15. axb5 {[%clk 00:10:25]} {[%emt 00:00:20]} axb5 {[%clk 00:07:09]}
{[%emt 00:00:04]} 16. d4 {[%clk 00:10:10]} {[%emt 00:00:18]} b4 {[%clk
00:06:10]} {[%emt 00:01:01]} 17. Nc2 {[%clk 00:09:29]} {[%emt 00:00:44]} bxc3
{[%clk 00:05:52]} {[%emt 00:00:21]} 18. bxc3 {[%clk 00:09:31]} {[%emt
00:00:02]} Qa5 {[%clk 00:05:43]} {[%emt 00:00:11]} 19. e5 {[%clk 00:08:53]}
{[%emt 00:00:43]} Ndxe5 {[%clk 00:04:54]} {[%emt 00:00:51]} 20. dxe5 {[%clk
00:08:34]} {[%emt 00:00:22]} Nxe5 {[%clk 00:04:56]} 21. Qe4 {[%clk 00:08:20]}
{[%emt 00:00:17]} d5 {[%clk 00:02:48]} {[%emt 00:02:11]} 22. Qxd5 {[%clk
00:06:47]} {[%emt 00:01:36]} Rfd8 {[%clk 00:02:49]} {[%emt 00:00:02]} 23. Qxc5
{[%clk 00:06:25]} {[%emt 00:00:25]} Qxc5 {[%clk 00:02:50]} {[%emt 00:00:02]} 24.
Bxc5 {[%clk 00:06:28]} Nd3 {[%clk 00:02:45]} {[%emt 00:00:09]} 25. Bxe7 {[%clk
00:06:29]} {[%emt 00:00:01]} Nxe1 {[%clk 00:02:33]} {[%emt 00:00:15]} 26. Bxd8
{[%clk 00:06:20]} {[%emt 00:00:12]} Nxc2 {[%clk 00:02:33]} {[%emt 00:00:03]} 27.
Bg5 {[%clk 00:05:40]} {[%emt 00:00:42]} Na3 {[%clk 00:02:24]} {[%emt 00:00:13]}
28. Be7 {[%clk 00:05:13]} {[%emt 00:00:30]} Nb5 {[%clk 00:01:47]} {[%emt
00:00:40]} 29. c4 {[%clk 00:04:55]} {[%emt 00:00:21]} Nd4 {[%clk 00:01:46]}
{[%emt 00:00:04]} 30. Bf1 {[%clk 00:04:40]} {[%emt 00:00:18]} Re8 {[%clk
00:01:24]} {[%emt 00:00:25]} 31. Bd6 {[%clk 00:03:55]} {[%emt 00:00:47]} Nf5
{[%clk 00:00:36]} {[%emt 00:00:51]} 32. Bc5 {[%clk 00:03:50]} {[%emt 00:00:08]}
Rc8 {[%clk 00:00:37]} {[%emt 00:00:03]} 33. Bb6 {[%clk 00:03:34]} {[%emt
00:00:19]} Bd4 {[%clk 00:00:28]} {[%emt 00:00:11]} 34. Bxd4 {[%clk 00:03:17]}
{[%emt 00:00:21]} Nxd4 {[%clk 00:00:30]} {[%emt 00:00:01]} 35. Kg2 {[%clk
00:03:17]} {[%emt 00:00:03]} Kf8 {[%clk 00:00:25]} {[%emt 00:00:07]} 36. Bd3
{[%clk 00:02:50]} {[%emt 00:00:30]} Nc6 {[%clk 00:00:15]} {[%emt 00:00:13]} 37.
Be4 {[%clk 00:02:46]} {[%emt 00:00:07]} Ne7 {[%clk 00:00:11]} {[%emt 00:00:08]}
38. Kf3 {[%clk 00:02:33]} {[%emt 00:00:16]} f5 {[%clk 00:00:11]} {[%emt
00:00:03]} 39. Bb7 {[%clk 00:02:28]} {[%emt 00:00:08]} Rc7 {[%clk 00:00:12]}
{[%emt 00:00:02]} 40. Ba6 {[%clk 00:02:22]} {[%emt 00:00:09]} Nc6 {[%clk
00:00:12]} {[%emt 00:00:03]} 41. Rc3 {[%clk 00:01:52]} {[%emt 00:00:28]} Ra7
{[%clk 00:00:10]} {[%emt 00:00:10]} 42. Bb5 {[%clk 00:01:51]} {[%emt 00:00:04]}
Nd4+ {[%clk 00:00:10]} {[%emt 00:00:03]} 43. Ke3 {[%clk 00:01:48]} {[%emt
00:00:05]} Nxb5 {[%clk 00:00:11]} {[%emt 00:00:02]} 44. cxb5 {[%clk 00:01:50]}
Rb7 {[%clk 00:00:13]} 45. Rc5 {[%clk 00:01:43]} {[%emt 00:00:10]} Ke7 {[%clk
00:00:15]} {[%emt 00:00:02]} 46. Kd4 {[%clk 00:01:45]} Kd6 {[%clk 00:00:12]}
{[%emt 00:00:06]} 47. Kc4 {[%clk 00:01:47]} {[%emt 00:00:02]} Rb6 {[%clk
00:00:06]} {[%emt 00:00:09]} 48. Rc8 {[%clk 00:01:39]} {[%emt 00:00:10]} Rb7
{[%clk 00:00:04]} {[%emt 00:00:06]} 49. Rc6+ {[%clk 00:01:39]} {[%emt
00:00:03]} Kd7 {[%clk 00:00:06]} 50. Kc5 {[%clk 00:01:41]} {[%emt 00:00:02]}
Kd8 {[%clk 00:00:04]} {[%emt 00:00:04]} 51. b6 {[%clk 00:01:35]} {[%emt
00:00:09]} Re7 {[%clk 00:00:05]} {[%emt 00:00:01]} 52. Rd6+ {[%clk 00:01:21]}
{[%emt 00:00:17]} Kc8 {[%clk 00:00:06]} {[%emt 00:00:02]} 53. Rd2 {[%clk
00:01:22]} {[%emt 00:00:02]} Re1 {[%clk 00:00:04]} {[%emt 00:00:05]} 54. Rb2
{[%clk 00:01:17]} {[%emt 00:00:08]} Rc1+ {[%clk 00:00:05]} {[%emt 00:00:02]} 55.
Kd6 {[%clk 00:01:18]} {[%emt 00:00:02]} Kb7 {[%clk 00:00:07]} {[%emt 00:00:01]}
56. Ke7 {[%clk 00:01:17]} {[%emt 00:00:03]} Rh1 {[%clk 00:00:06]} {[%emt
00:00:05]} 57. h4 {[%clk 00:01:16]} {[%emt 00:00:04]} f4 {[%clk 00:00:07]}
{[%emt 00:00:02]} 58. Kf6 {[%clk 00:01:13]} {[%emt 00:00:06]} fxg3 {[%clk
00:00:08]} {[%emt 00:00:02]} 59. fxg3 {[%clk 00:01:14]} {[%emt 00:00:02]} Rg1
{[%clk 00:00:08]} {[%emt 00:00:03]} 60. Rb3 {[%clk 00:01:16]} Rf1+ {[%clk
00:00:04]} {[%emt 00:00:06]} 61. Kg7 {[%clk 00:01:17]} {[%emt 00:00:02]} g5
{[%clk 00:00:05]} {[%emt 00:00:02]} 62. h5 {[%clk 00:01:13]} {[%emt 00:00:07]}
Rh1 {[%clk 00:00:05]} {[%emt 00:00:04]} 63. h6 {[%clk 00:01:15]} 1-0

[Event "4. Memorial Svat.Hastika OPEN"]
[Site "Jesenik, Czech Republic"]
[Date "2022.09.03"]
[Round "1.3"]
[White "Haidenko, Mykola"]
[Black "Bares, Jachym"]
[Result "0-1"]
[TimeControl "720+3"]
[WhiteFideId "23731958"]
[BlackFideId "345075"]
[WhiteElo "1429"]
[BlackElo "1978"]

1. e4 {[%clk 00:12:06]} e5 {[%clk 00:12:04]} {[%emt 00:00:02]} 2. d4 {[%clk
00:12:08]} exd4 {[%clk 00:12:03]} {[%emt 00:00:04]} 3. Nf3 {[%clk 00:12:10]} d5
{[%clk 00:12:00]} {[%emt 00:00:06]} 4. exd5 {[%clk 00:11:55]} {[%emt 00:00:19]}
Qxd5 {[%clk 00:12:00]} {[%emt 00:00:02]} 5. Nxd4 {[%clk 00:11:55]} {[%emt
00:00:04]} Nf6 {[%clk 00:11:18]} {[%emt 00:00:45]} 6. Nc3 {[%clk 00:11:44]}
{[%emt 00:00:14]} Bb4 {[%clk 00:10:58]} {[%emt 00:00:23]} 7. Qd3 {[%clk
00:10:34]} {[%emt 00:01:13]} O-O {[%clk 00:10:20]} {[%emt 00:00:40]} 8. Nde2
{[%clk 00:10:16]} {[%emt 00:00:22]} Qxd3 {[%clk 00:10:15]} {[%emt 00:00:07]} 9.
cxd3 {[%clk 00:10:17]} {[%emt 00:00:01]} Bf5 {[%clk 00:10:17]} {[%emt
00:00:02]} 10. d4 {[%clk 00:10:06]} {[%emt 00:00:15]} Nc6 {[%clk 00:09:43]}
{[%emt 00:00:36]} 11. g3 {[%clk 00:09:49]} {[%emt 00:00:19]} Rfe8 {[%clk
00:09:45]} {[%emt 00:00:02]} 12. Be3 {[%clk 00:09:49]} {[%emt 00:00:03]} Rad8
{[%clk 00:08:37]} {[%emt 00:01:11]} 13. Bg2 {[%clk 00:09:41]} {[%emt 00:00:10]}
Ng4 {[%clk 00:08:01]} {[%emt 00:00:40]} 14. O-O {[%clk 00:09:11]} {[%emt
00:00:33]} Bd3 {[%clk 00:07:46]} {[%emt 00:00:17]} 15. Rfd1 {[%clk 00:08:54]}
{[%emt 00:00:21]} Bxe2 {[%clk 00:07:43]} {[%emt 00:00:05]} 16. Nxe2 {[%clk
00:08:56]} {[%emt 00:00:02]} Nxe3 {[%clk 00:07:37]} {[%emt 00:00:09]} 17. fxe3
{[%clk 00:08:58]} Rxe3 {[%clk 00:07:37]} {[%emt 00:00:03]} 18. Nf4 {[%clk
00:08:54]} {[%emt 00:00:07]} Bd6 {[%clk 00:06:09]} {[%emt 00:01:31]} 19. Nd5
{[%clk 00:08:23]} {[%emt 00:00:34]} Re2 {[%clk 00:06:08]} {[%emt 00:00:04]} 20.
b3 {[%clk 00:08:10]} {[%emt 00:00:16]} Rde8 {[%clk 00:04:16]} {[%emt 00:01:55]}
21. Bf3 {[%clk 00:07:37]} {[%emt 00:00:35]} Rc2 {[%clk 00:03:59]} {[%emt
00:00:20]} 22. Rdc1 {[%clk 00:07:17]} {[%emt 00:00:24]} Nxd4 {[%clk 00:03:40]}
{[%emt 00:00:22]} 23. Rxc2 {[%clk 00:07:18]} {[%emt 00:00:02]} Nxc2 {[%clk
00:03:41]} {[%emt 00:00:01]} 24. Rc1 {[%clk 00:07:14]} {[%emt 00:00:07]} Nd4
{[%clk 00:03:32]} {[%emt 00:00:12]} 25. Bg4 {[%clk 00:06:48]} {[%emt 00:00:30]}
c6 {[%clk 00:03:30]} {[%emt 00:00:05]} 26. Nc3 {[%clk 00:06:44]} {[%emt
00:00:07]} Bb4 {[%clk 00:03:15]} {[%emt 00:00:18]} 27. Na4 {[%clk 00:06:37]}
{[%emt 00:00:10]} Ne2+ {[%clk 00:03:09]} {[%emt 00:00:08]} 28. Bxe2 {[%clk
00:06:38]} {[%emt 00:00:03]} Rxe2 {[%clk 00:03:11]} {[%emt 00:00:01]} 29. Rd1
{[%clk 00:06:24]} {[%emt 00:00:17]} Kf8 {[%clk 00:02:46]} {[%emt 00:00:28]} 30.
Rd7 {[%clk 00:06:23]} {[%emt 00:00:04]} b5 {[%clk 00:02:48]} 31. Rxa7 {[%clk
00:06:19]} {[%emt 00:00:07]} bxa4 {[%clk 00:02:47]} {[%emt 00:00:04]} 32. Rxa4
{[%clk 00:06:21]} {[%emt 00:00:01]} Bc5+ {[%clk 00:02:45]} {[%emt 00:00:05]} 33.
Kh1 {[%clk 00:06:20]} {[%emt 00:00:04]} Ke7 {[%clk 00:02:34]} {[%emt 00:00:14]}
34. Ra6 {[%clk 00:06:21]} {[%emt 00:00:02]} Kd6 {[%clk 00:02:33]} {[%emt
00:00:03]} 35. a4 {[%clk 00:06:23]} Rb2 {[%clk 00:02:31]} {[%emt 00:00:05]} 36.
Ra8 {[%clk 00:06:25]} {[%emt 00:00:02]} Rxb3 {[%clk 00:02:31]} {[%emt
00:00:03]} 37. a5 {[%clk 00:06:27]} Rb7 {[%clk 00:02:25]} {[%emt 00:00:09]} 38.
a6 {[%clk 00:06:27]} {[%emt 00:00:03]} Ra7 {[%clk 00:02:27]} {[%emt 00:00:02]}
39. Rxa7 {[%clk 00:06:27]} {[%emt 00:00:02]} Bxa7 {[%clk 00:02:28]} {[%emt
00:00:01]} 40. Kg2 {[%clk 00:06:29]} {[%emt 00:00:02]} Kc5 {[%clk 00:02:30]} 41.
Kf3 {[%clk 00:06:31]} {[%emt 00:00:01]} Kb5 {[%clk 00:02:32]} 42. Ke4 {[%clk
00:06:33]} {[%emt 00:00:01]} Kxa6 {[%clk 00:02:34]} {[%emt 00:00:02]} 43. Ke5
{[%clk 00:06:34]} {[%emt 00:00:02]} c5 {[%clk 00:02:36]} 44. Kd5 {[%clk
00:06:35]} {[%emt 00:00:02]} Kb5 {[%clk 00:02:38]} {[%emt 00:00:01]} 45. Ke4
{[%clk 00:06:36]} Kc4 {[%clk 00:02:40]} {[%emt 00:00:01]} 46. Ke3 {[%clk
00:06:38]} {[%emt 00:00:01]} Kb3 {[%clk 00:02:41]} {[%emt 00:00:01]} 47. Kd2
{[%clk 00:06:40]} Kb2 {[%clk 00:02:43]} 48. Ke1 {[%clk 00:12:03]} {[%emt
00:00:07]} 0-1

[Event "4. Memorial Svat.Hastika OPEN"]
[Site "Jesenik, Czech Republic"]
[Date "2022.09.03"]
[Round "1.4"]
[White "Cempel, Jaroslav"]
[Black "Pobucky, Ondrej"]
[Result "1-0"]
[TimeControl "720+3"]
[WhiteFideId "300730"]
[BlackFideId "23742305"]
[WhiteElo "1911"]
[BlackElo "1426"]

1. e4 {[%clk 00:12:03]} {[%emt 00:00:01]} e5 {[%clk 00:12:05]} {[%emt
00:00:02]} 2. Nf3 {[%emt 00:00:03]} Nc6 {[%clk 00:12:06]} 3. c3 {[%clk
00:12:06]} Nf6 {[%clk 00:11:54]} {[%emt 00:00:16]} 4. d4 {[%clk 00:12:07]} exd4
{[%clk 00:11:47]} {[%emt 00:00:11]} 5. Bg5 {[%clk 00:12:05]} {[%emt 00:00:04]}
Be7 {[%clk 00:11:22]} {[%emt 00:00:29]} 6. Bxf6 {[%clk 00:12:05]} {[%emt
00:00:02]} Bxf6 {[%clk 00:11:24]} {[%emt 00:00:02]} 7. cxd4 {[%clk 00:12:06]}
{[%emt 00:00:02]} Qe7 {[%clk 00:11:08]} {[%emt 00:00:19]} 8. Nc3 {[%clk
00:12:00]} {[%emt 00:00:09]} d6 {[%clk 00:10:55]} {[%emt 00:00:17]} 9. h3
{[%clk 00:11:53]} {[%emt 00:00:09]} O-O {[%clk 00:10:51]} {[%emt 00:00:07]} 10.
Be2 {[%clk 00:11:38]} {[%emt 00:00:17]} Bd7 {[%clk 00:10:32]} {[%emt 00:00:23]}
11. O-O {[%clk 00:11:04]} {[%emt 00:00:36]} a6 {[%clk 00:09:47]} {[%emt
00:00:49]} 12. Rc1 {[%clk 00:09:53]} {[%emt 00:01:13]} Rfe8 {[%clk 00:09:42]}
{[%emt 00:00:08]} 13. Nd5 {[%clk 00:07:14]} {[%emt 00:02:41]} Qd8 {[%clk
00:09:32]} {[%emt 00:00:12]} 14. Nxf6+ {[%clk 00:06:55]} {[%emt 00:00:23]} Qxf6
{[%clk 00:09:32]} {[%emt 00:00:03]} 15. d5 {[%clk 00:06:58]} Ne5 {[%clk
00:09:30]} {[%emt 00:00:05]} 16. Nxe5 {[%clk 00:05:53]} {[%emt 00:01:07]} Rxe5
{[%clk 00:09:12]} {[%emt 00:00:21]} 17. Rxc7 {[%clk 00:04:39]} {[%emt
00:01:17]} Bc8 {[%clk 00:08:49]} {[%emt 00:00:26]} 18. Qc2 {[%clk 00:03:05]}
{[%emt 00:01:37]} Qd8 {[%clk 00:08:23]} {[%emt 00:00:28]} 19. f4 {[%clk
00:02:43]} {[%emt 00:00:26]} Re7 {[%clk 00:08:18]} {[%emt 00:00:08]} 20. Rxe7
{[%clk 00:02:41]} {[%emt 00:00:05]} Qxe7 {[%clk 00:08:20]} {[%emt 00:00:02]} 21.
Bf3 {[%clk 00:02:37]} {[%emt 00:00:07]} Qd8 {[%clk 00:07:24]} {[%emt 00:00:58]}
22. Re1 {[%clk 00:02:31]} {[%emt 00:00:10]} Bd7 {[%clk 00:07:25]} {[%emt
00:00:02]} 23. e5 {[%clk 00:02:29]} {[%emt 00:00:05]} dxe5 {[%clk 00:07:19]}
{[%emt 00:00:09]} 24. fxe5 {[%clk 00:02:30]} Rc8 {[%clk 00:07:21]} {[%emt
00:00:02]} 25. Qd2 {[%clk 00:02:28]} {[%emt 00:00:05]} Qb6+ {[%clk 00:07:21]}
{[%emt 00:00:03]} 26. Kh1 {[%clk 00:02:25]} {[%emt 00:00:06]} Qb5 {[%clk
00:06:32]} {[%emt 00:00:52]} 27. e6 {[%clk 00:02:12]} {[%emt 00:00:15]} fxe6
{[%clk 00:06:22]} {[%emt 00:00:13]} 28. dxe6 {[%clk 00:02:14]} {[%emt
00:00:02]} Bc6 {[%emt 00:00:25]} 29. Bxc6 {[%clk 00:01:47]} {[%emt 00:00:16]}
Qxc6 {[%clk 00:06:10]} {[%emt 00:00:06]} 30. Qd7 {[%clk 00:01:38]} {[%emt
00:00:12]} Ra8 {[%clk 00:05:26]} {[%emt 00:00:48]} 31. Qf7+ {[%clk 00:01:26]}
{[%emt 00:00:14]} Kh8 {[%clk 00:05:23]} {[%emt 00:00:06]} 32. e7 {[%clk
00:01:16]} {[%emt 00:00:12]} Re8 {[%clk 00:04:59]} {[%emt 00:00:28]} 33. Rf1
{[%clk 00:01:04]} {[%emt 00:00:16]} h6 {[%clk 00:04:04]} {[%emt 00:00:58]} 34.
Qxe8+ {[%clk 00:00:58]} {[%emt 00:00:09]} Qxe8 {[%clk 00:04:00]} {[%emt
00:00:06]} 35. Rf8+ {[%clk 00:01:00]} 1-0

[Event "4. Memorial Svat.Hastika OPEN"]
[Site "Jesenik, Czech Republic"]
[Date "2022.09.03"]
[Round "1.5"]
[White "Gvizdova, Michala"]
[Black "Gawlas, Roman"]
[Result "0-1"]
[TimeControl "720+3"]
[WhiteFideId "23740590"]
[BlackFideId "351652"]
[WhiteElo "1377"]
[BlackElo "1906"]

1. e4 {[%clk 00:12:01]} {[%emt 00:00:02]} c5 {[%clk 00:12:02]} {[%emt
00:00:02]} 2. Nf3 {[%clk 00:11:58]} {[%emt 00:00:03]} e6 {[%clk 00:12:00]} 3.
d4 {[%clk 00:11:55]} {[%emt 00:00:03]} cxd4 {[%clk 00:11:59]} {[%emt 00:00:02]}
4. Nxd4 {[%clk 00:11:53]} {[%emt 00:00:01]} Nc6 {[%clk 00:11:58]} 5. Be3 {[%clk
00:11:42]} {[%emt 00:00:11]} Qc7 {[%clk 00:11:54]} {[%emt 00:00:04]} 6. Nc3
{[%clk 00:11:19]} {[%emt 00:00:24]} a6 {[%clk 00:11:52]} {[%emt 00:00:02]} 7.
Be2 {[%clk 00:11:00]} {[%emt 00:00:18]} Nf6 {[%clk 00:11:50]} {[%emt 00:00:03]}
8. f4 {[%clk 00:10:28]} {[%emt 00:00:32]} Bb4 {[%clk 00:11:03]} {[%emt
00:00:47]} 9. O-O {[%clk 00:09:28]} {[%emt 00:01:00]} Bxc3 {[%clk 00:10:40]}
{[%emt 00:00:23]} 10. bxc3 {[%clk 00:09:26]} {[%emt 00:00:02]} Nxe4 {[%clk
00:10:38]} 11. Qd3 {[%clk 00:08:53]} {[%emt 00:00:34]} d5 {[%clk 00:09:51]}
{[%emt 00:00:47]} 12. Bf3 {[%clk 00:07:55]} {[%emt 00:00:58]} Nf6 {[%clk
00:09:40]} {[%emt 00:00:11]} 13. f5 {[%clk 00:07:43]} {[%emt 00:00:12]} Ne5
{[%clk 00:09:23]} {[%emt 00:00:17]} 14. Qd2 {[%clk 00:07:16]} {[%emt 00:00:26]}
Nc4 {[%clk 00:08:38]} {[%emt 00:00:46]} 15. Qe1 {[%clk 00:06:34]} {[%emt
00:00:41]} e5 {[%clk 00:06:17]} {[%emt 00:02:22]} 16. Nb3 {[%clk 00:06:32]}
{[%emt 00:00:02]} Nxe3 {[%clk 00:06:02]} {[%emt 00:00:14]} 17. Qxe3 {[%clk
00:06:30]} {[%emt 00:00:02]} O-O {[%clk 00:06:00]} {[%emt 00:00:02]} 18. g4
{[%clk 00:05:40]} {[%emt 00:00:50]} e4 {[%clk 00:05:45]} {[%emt 00:00:15]} 19.
Be2 {[%clk 00:05:38]} {[%emt 00:00:02]} Nd7 {[%clk 00:04:55]} {[%emt 00:00:50]}
20. g5 {[%clk 00:04:56]} {[%emt 00:00:42]} f6 {[%clk 00:04:37]} {[%emt
00:00:18]} 21. Nd4 {[%clk 00:04:34]} {[%emt 00:00:22]} Ne5 {[%clk 00:04:25]}
{[%emt 00:00:12]} 22. Rad1 {[%clk 00:03:17]} {[%emt 00:01:18]} fxg5 {[%clk
00:04:01]} {[%emt 00:00:23]} 23. Qxg5 {[%clk 00:03:14]} {[%emt 00:00:04]} Rf6
{[%clk 00:03:57]} {[%emt 00:00:03]} 24. Kh1 {[%clk 00:02:56]} {[%emt 00:00:19]}
Nf7 {[%clk 00:03:07]} {[%emt 00:00:50]} 25. Qh5 {[%clk 00:02:04]} {[%emt
00:00:51]} Rh6 {[%clk 00:02:28]} {[%emt 00:00:40]} 0-1

[Event "4. Memorial Svat.Hastika OPEN"]
[Site "Jesenik, Czech Republic"]
[Date "2022.09.03"]
[Round "1.6"]
[White "Wrobel, Maciej"]
[Black "Poljak, Lucian"]
[Result "1-0"]
[TimeControl "720+3"]
[WhiteFideId "1181351"]
[BlackFideId "23740590"]
[WhiteElo "1873"]
[BlackElo "1367"]

1. e4 {[%clk 00:12:05]} {[%emt 00:00:01]} e5 {[%clk 00:12:05]} {[%emt
00:00:02]} 2. Nf3 {[%clk 00:12:06]} Nc6 {[%clk 00:12:07]} {[%emt 00:00:02]} 3.
Bc4 {[%clk 00:12:08]} Nf6 {[%clk 00:11:55]} {[%emt 00:00:15]} 4. Ng5 {[%clk
00:11:57]} {[%emt 00:00:13]} d5 {[%clk 00:11:53]} {[%emt 00:00:04]} 5. exd5
{[%clk 00:11:58]} {[%emt 00:00:02]} Nxd5 {[%clk 00:11:45]} {[%emt 00:00:12]} 6.
Nxf7 {[%clk 00:11:56]} {[%emt 00:00:05]} Kxf7 {[%clk 00:09:01]} {[%emt
00:02:46]} 7. Qf3+ {[%clk 00:11:57]} {[%emt 00:00:02]} Ke6 {[%clk 00:08:59]}
{[%emt 00:00:06]} 8. Nc3 {[%clk 00:11:56]} {[%emt 00:00:04]} Nce7 {[%clk
00:07:40]} {[%emt 00:01:22]} 9. d4 {[%clk 00:11:16]} {[%emt 00:00:43]} Qd6
{[%clk 00:06:34]} {[%emt 00:01:08]} 10. O-O {[%clk 00:10:42]} {[%emt 00:00:38]}
Qc6 {[%clk 00:04:59]} {[%emt 00:01:38]} 11. Bb3 {[%clk 00:09:57]} {[%emt
00:00:48]} g6 {[%clk 00:03:52]} {[%emt 00:01:10]} 12. dxe5 {[%clk 00:08:53]}
{[%emt 00:01:06]} Bg7 {[%clk 00:03:26]} {[%emt 00:00:29]} 13. Bg5 {[%clk
00:08:26]} {[%emt 00:00:30]} Rf8 {[%clk 00:02:24]} {[%emt 00:01:05]} 14. Qe4
{[%clk 00:07:58]} {[%emt 00:00:30]} Rf5 {[%clk 00:01:45]} {[%emt 00:00:43]} 15.
Bxe7 {[%clk 00:07:51]} {[%emt 00:00:10]} Rxe5 {[%clk 00:01:45]} {[%emt
00:00:04]} 16. Bxd5+ {[%clk 00:07:28]} {[%emt 00:00:25]} Kxe7 {[%clk 00:00:38]}
{[%emt 00:01:10]} 17. Bxc6 {[%clk 00:07:06]} {[%emt 00:00:26]} Rxe4 {[%clk
00:00:39]} {[%emt 00:00:02]} 18. Bxe4 {[%clk 00:07:07]} {[%emt 00:00:02]} c6
{[%clk 00:00:28]} {[%emt 00:00:14]} 19. Rfe1 {[%clk 00:07:04]} {[%emt
00:00:06]} Kf7 {[%clk 00:00:20]} {[%emt 00:00:11]} 20. Rad1 {[%clk 00:07:03]}
{[%emt 00:00:04]} Be6 {[%clk 00:00:11]} {[%emt 00:00:13]} 21. Rd3 {[%clk
00:06:14]} {[%emt 00:00:51]} 1-0